fUSD/lending_fUSD_20260226
["ID","MTS","AMOUNT","RATE_DAILY","PERIOD"]
[406718689,1772117446111,-65539.96456275,0.000179,2]
[406718690,1772117446120,-27067.80659463,0.000179,2]
[406718691,1772117446129,-883.48196873,0.000179,2]
[406718692,1772117446138,-7923.90906463,0.000179,2]
[406718693,1772117446148,-500.0,0.00017918,2]
[406718694,1772117446157,-527.0,0.00017922,2]
[406718695,1772117446166,-150.0,0.00017926,2]
[406718696,1772117446176,-151.0,0.00017953,2]
[406718697,1772117446185,-300.0,0.00017955,2]
[406718698,1772117446197,-25667.2724564,0.00017956,2]
[406718699,1772117446207,-606478.2500695,0.00017956,2]
[406718700,1772117446216,-151.0,0.00017956,2]
[406718701,1772117446226,-151.0,0.00017956,2]
[406718702,1772117446235,-151.026065,0.00017956,2]
[406718703,1772117446245,-151.0,0.00017956,2]
[406718704,1772117446254,-151.0,0.00017956,2]
[406718705,1772117446265,-151.0,0.00017956,2]
[406718706,1772117446275,-151.0,0.00017956,2]
[406718707,1772117446284,-151.0,0.00017956,2]
[406718708,1772117446295,-151.0,0.00017956,2]
[406718709,1772117446305,-271.472129,0.00017956,2]
[406718710,1772117446314,-271.472129,0.00017956,2]
[406718711,1772117446323,-271.472129,0.00017956,2]
[406718712,1772117446332,-271.472129,0.00017956,2]
[406718713,1772117446341,-151.0,0.00017956,2]
[406718714,1772117446351,-151.0,0.00017956,2]
[406718715,1772117446360,-1000.0,0.0001797,2]
[406718716,1772117446370,-500.0,0.0001797,2]
[406718717,1772117446379,-500.0,0.00017972,2]
[406718718,1772117446389,-1990.0,0.00017973,2]
[406718719,1772117446398,-500.0,0.00017973,2]
[406718720,1772117446408,-174.26065421,0.00017973,2]
[406718721,1772117446417,-500.0,0.00017973,2]
[406718722,1772117446427,-208.88429413,0.00017973,2]
[406718723,1772117446534,-500.0,0.00017979,2]
[406718724,1772117446544,-384.80531288,0.00017979,2]
[406718725,1772117446553,-500.0,0.00017979,18]
[406718726,1772117446562,-204.48,0.0001798,2]
[406718727,1772117446574,-500.0,0.00017982,2]
[406718728,1772117446585,-713.74871488,0.0001799,2]
[406718729,1772117446595,-713.74871488,0.0001799,2]
[406718730,1772117446604,-527.0,0.00017992,2]
[406718731,1772117446614,-25000.0,0.00017994,3]
[406718732,1772117446624,-500.0,0.00017997,2]
[406718733,1772117446633,-500.0,0.00017997,2]
[406718734,1772117446642,-391.644255,0.00017997,2]
[406718735,1772117446651,-500.0,0.00017997,19]
[406718736,1772117446660,-500.0,0.00017997,20]
[406718737,1772117446670,-500.0,0.00017997,21]
[406718738,1772117446680,-500.0,0.00017997,21]
[406718739,1772117446690,-500.0,0.00017997,21]
[406718740,1772117446699,-384.61162915,0.00017997,21]
[406718741,1772117446708,-151.0,0.00017997,2]
[406718742,1772117446718,-151.0,0.00017999,5]
[406718743,1772117446727,-151.0,0.00017999,5]
[406718744,1772117446737,-500.0,0.00017999,5]
[406718745,1772117446747,-500.0,0.00017999,5]
[406718746,1772117446757,-500.0,0.00017999,5]
[406718747,1772117446768,-500.0,0.00017999,5]
[406718748,1772117446777,-500.0,0.00017999,5]
[406718749,1772117446786,-500.0,0.00017999,5]
[406718750,1772117446795,-500.0,0.00017999,5]
[406718751,1772117446804,-500.0,0.00017999,5]
[406718752,1772117446813,-500.0,0.00017999,5]
[406718753,1772117446822,-500.0,0.00017999,5]
[406718754,1772117446831,-502.62170178,0.00017999,5]
[406718755,1772117446840,-500.0,0.00017999,5]
[406718756,1772117446850,-500.0,0.00017999,5]
[406718757,1772117446859,-500.0,0.00017999,5]
[406718758,1772117446873,-500.0,0.00017999,5]
[406718759,1772117446882,-500.0,0.00017999,5]
[406718760,1772117446891,-500.0,0.00017999,5]
[406718761,1772117446901,-500.0,0.00017999,5]
[406718762,1772117446911,-373.19905658,0.00017999,5]
[406718763,1772117446921,-693.3919763,0.00017999,5]
[406718764,1772117446930,-719.04747942,0.00017999,5]
[406718765,1772117446942,-745.65223616,0.00017999,5]
[406718766,1772117446951,-773.2413689,0.00017999,5]
[406718767,1772117446960,-801.85129955,0.00017999,5]
[406718768,1772117446969,-831.51979763,0.00017999,5]
[406718769,1772117446978,-862.28603014,0.00017999,5]
[406718770,1772117446987,-151.0,0.00017999,5]
[406718771,1772117446997,-894.19061326,0.00017999,5]
[406718772,1772117447006,-927.27566595,0.00017999,5]
[406718773,1772117447019,-151.0,0.00017999,5]
[406718774,1772117447028,-961.58486559,0.00017999,5]
[406718775,1772117447039,-151.0,0.00017999,5]
[406718776,1772117447048,-151.0,0.00017999,5]
[406718777,1772117447058,-151.0,0.00017999,5]
[406718778,1772117447067,-151.0,0.00017999,5]
[406718779,1772117447077,-151.0,0.00017999,5]
[406718780,1772117447086,-151.0,0.00017999,5]
[406718781,1772117447095,-151.0,0.00017999,5]
[406718782,1772117447105,-151.0,0.00017999,5]
[406718783,1772117447114,-151.0,0.00017999,5]
[406718784,1772117447123,-666.0,0.00017999,2]
[406718785,1772117447132,-300.0,0.00017999,2]
[406718786,1772117447141,-150.0,0.00017999,2]
[406718787,1772117447151,-155.07011647,0.00017999,2]
[406718788,1772117447160,-1419062.82757255,0.00018,2]
[406718789,1772117447169,-676.42956145,0.00018,90]
[406718790,1772117447179,-4079159.55374866,0.00018,2]
[406718791,1772117447460,-1404.54530856,0.00018,2]
[406718792,1772117447827,-5983.0,0.00012757,2]
[406718793,1772117447837,-2570.96455572,0.00015757,2]
[406718794,1772117447863,-3412.03544428,0.00015757,2]
[406718795,1772117447873,-2725.97775843,0.000179,2]
[406718796,1772117447883,-28592.21310138,0.00018,2]
[406718797,1772117447894,-500.0,0.00018,2]
[406718801,1772117552292,156.68,4.015e-05,2]
[406718802,1772117552547,156.68,4.836e-05,2]
[406718803,1772117553001,156.68,5.657e-05,2]
[406718804,1772117553223,156.68,6.478e-05,2]
[406718806,1772118004958,-1990.0,6.548e-05,2]
[406718807,1772118004982,-207.0,6.548e-05,2]
[406718808,1772118005007,-300.0,6.558e-05,2]
[406718809,1772118005030,-250.0,6.568e-05,2]
[406718810,1772118005054,-300.0,6.576e-05,2]
[406718811,1772118005079,-300.0,6.576e-05,2]
[406718812,1772118005103,-300.0,6.576e-05,2]
[406718813,1772118005127,-1200.0,6.586e-05,2]
[406718814,1772118005153,-300.0,6.586e-05,2]
[406718815,1772118005181,-1200.0,6.587e-05,2]
[406718816,1772118005206,-300.0,6.587e-05,2]
[406718817,1772118005236,-359.91249122,6.588e-05,2]
[406718818,1772118005260,-415.57152848,6.588e-05,2]
[406718819,1772118005293,-500.0,6.588e-05,2]
[406718820,1772118005318,-328.45241177,6.588e-05,2]
[406718821,1772118005346,-500.0,6.588e-05,2]
[406718822,1772118005374,-500.0,6.588e-05,2]
[406718823,1772118005404,-500.0,6.588e-05,2]
[406718824,1772118005439,-500.0,6.588e-05,2]
[406718825,1772118005469,-500.0,6.588e-05,2]
[406718826,1772118005500,-500.0,6.588e-05,2]
[406718827,1772118005529,-500.0,6.588e-05,2]
[406718828,1772118005561,-500.0,6.588e-05,2]
[406718829,1772118005590,-500.0,6.588e-05,2]
[406718830,1772118005619,-500.0,6.588e-05,2]
[406718831,1772118005647,-500.0,6.588e-05,2]
[406718832,1772118005677,-500.0,6.588e-05,2]
[406718833,1772118005707,-500.0,6.588e-05,2]
[406718834,1772118005735,-500.0,6.588e-05,2]
[406718835,1772118005764,-500.0,6.588e-05,2]
[406718836,1772118005794,-297.42477631,6.588e-05,2]
[406718837,1772118005824,-500.0,6.588e-05,2]
[406718838,1772118005853,-500.0,6.588e-05,2]
[406718839,1772118005882,-500.0,6.588e-05,2]
[406718840,1772118005913,-500.0,6.588e-05,2]
[406718841,1772118005942,-500.0,6.588e-05,2]
[406718842,1772118005971,-500.0,6.588e-05,2]
[406718843,1772118006002,-500.0,6.588e-05,2]
[406718844,1772118006032,-500.0,6.588e-05,2]
[406718845,1772118006062,-500.0,6.588e-05,2]
[406718846,1772118006092,-500.0,6.588e-05,2]
[406718847,1772118006122,-500.0,6.588e-05,2]
[406718848,1772118006150,-500.0,6.588e-05,2]
[406718849,1772118006180,-500.0,6.588e-05,2]
[406718850,1772118006359,-500.0,6.588e-05,2]
[406718851,1772118006391,-500.0,6.588e-05,2]
[406718852,1772118006422,-500.0,6.588e-05,2]
[406718853,1772118006445,-186.33405223,6.588e-05,2]
[406718854,1772118006474,-914.95713068,6.588e-05,2]
[406718855,1772118006503,-914.95713068,6.588e-05,2]
[406718856,1772118006532,-914.95713068,6.588e-05,2]
[406718857,1772118006562,-914.95713068,6.588e-05,2]
[406718858,1772118006589,-914.95713068,6.588e-05,2]
[406718859,1772118006617,-914.95713068,6.588e-05,2]
[406718860,1772118006644,-914.95713068,6.588e-05,2]
[406718861,1772118006673,-914.95713068,6.588e-05,2]
[406718862,1772118006700,-914.95713068,6.588e-05,2]
[406718863,1772118006727,-914.95713068,6.588e-05,2]
[406718864,1772118006752,-914.95713068,6.588e-05,2]
[406718865,1772118006779,-914.95713068,6.588e-05,2]
[406718866,1772118006805,-914.95713068,6.588e-05,2]
[406718867,1772118006831,-914.95713068,6.588e-05,2]
[406718868,1772118006857,-914.95713068,6.588e-05,2]
[406718869,1772118006884,-914.95713068,6.588e-05,2]
[406718870,1772118006912,-914.95713068,6.588e-05,2]
[406718871,1772118006939,-914.95713068,6.588e-05,2]
[406718872,1772118006965,-914.95713068,6.588e-05,2]
[406718873,1772118006993,-914.95713068,6.588e-05,2]
[406718874,1772118007021,-914.95713068,6.588e-05,2]
[406718875,1772118007048,-914.95713068,6.588e-05,2]
[406718876,1772118007075,-914.95713068,6.588e-05,2]
[406718877,1772118007105,-914.95713068,6.588e-05,2]
[406718878,1772118007132,-914.95713068,6.588e-05,2]
[406718879,1772118007159,-914.95713068,6.588e-05,2]
[406718880,1772118007185,-914.95713068,6.588e-05,2]
[406718881,1772118007213,-914.95713068,6.588e-05,2]
[406718882,1772118007240,-914.95713068,6.588e-05,2]
[406718883,1772118007268,-914.95713068,6.588e-05,2]
[406718884,1772118007297,-914.95713068,6.588e-05,2]
[406718885,1772118007325,-914.95713068,6.588e-05,2]
[406718886,1772118007353,-914.95713068,6.588e-05,2]
[406718887,1772118007379,-914.95713068,6.588e-05,2]
[406718888,1772118007406,-914.95713068,6.588e-05,2]
[406718889,1772118007432,-904.06478387,6.588e-05,2]
[406718890,1772118007460,-904.06478387,6.588e-05,2]
[406718891,1772118007487,-904.06478387,6.588e-05,2]
[406718892,1772118007513,-904.06478387,6.588e-05,2]
[406718893,1772118007541,-904.06478387,6.588e-05,2]
[406718894,1772118007569,-904.06478387,6.588e-05,2]
[406718895,1772118007599,-904.06478387,6.588e-05,2]
[406718896,1772118007627,-904.06478387,6.588e-05,2]
[406718897,1772118007658,-904.06478387,6.588e-05,2]
[406718898,1772118007686,-904.06478387,6.588e-05,2]
[406718899,1772118007713,-904.06478387,6.588e-05,2]
[406718900,1772118007744,-904.06478387,6.588e-05,2]
[406718901,1772118007773,-904.06478387,6.588e-05,2]
[406718902,1772118007801,-904.06478387,6.588e-05,2]
[406718903,1772118007832,-904.06478387,6.588e-05,2]
[406718904,1772118007860,-904.06478387,6.588e-05,2]
[406718905,1772118007890,-904.06478387,6.588e-05,2]
[406718906,1772118007923,-904.06478387,6.588e-05,2]
[406718907,1772118007952,-904.06478387,6.588e-05,2]
[406718908,1772118007982,-904.06478387,6.588e-05,2]
[406718909,1772118008014,-904.06478387,6.588e-05,2]
[406718910,1772118008039,-500.0,6.588e-05,2]
[406718911,1772118008063,-500.0,6.588e-05,2]
[406718912,1772118008086,-184.54572167,6.588e-05,2]
[406718913,1772118008109,-500.0,6.588e-05,2]
[406718914,1772118008132,-516.35595448,6.588e-05,2]
[406718915,1772118008155,-500.0,6.588e-05,2]
[406718916,1772118008177,-500.0,6.588e-05,2]
[406718917,1772118008199,-500.0,6.588e-05,2]
[406718918,1772118008221,-500.0,6.588e-05,2]
[406718919,1772118008243,-500.0,6.588e-05,2]
[406718920,1772118008264,-240.14375636,6.588e-05,2]
[406718921,1772118008293,-7304.39927241,6.589e-05,2]
[406718922,1772118074965,150.0,0.00017333,120]
[406718923,1772118096662,1056.312,6.457e-05,2]
[406719256,1772118633235,-0.38376464,6.548e-05,2]
[406719257,1772118633250,-3407.0591402,6.548e-05,2]
[406719258,1772118633263,-673.97,6.548e-05,2]
[406719259,1772118633279,-438.88709516,6.548e-05,2]
[406719260,1772118633288,-52.14895454,6.548e-05,2]
[406719261,1772118633299,-342.48315084,6.548e-05,2]
[406719262,1772118633311,-511.69518759,6.548e-05,2]
[406719263,1772118633322,-1829.88885946,6.548e-05,2]
[406719264,1772118633333,-41.15356989,6.548e-05,2]
[406719265,1772118633344,-207.0,6.548e-05,2]
[406719266,1772118633354,-300.0,6.62e-05,2]
[406719267,1772118633363,-300.0,7.034e-05,2]
[406719268,1772118633374,-300.0,7.034e-05,2]
[406719269,1772118633384,-250.0,7.203e-05,2]
[406719270,1772118633395,-300.0,7.203e-05,2]
[406719271,1772118633405,-250.0,7.203e-05,2]
[406719272,1772118633415,-300.0,7.203e-05,2]
[406719273,1772118633424,-250.0,7.203e-05,2]
[406719274,1772118633435,-3241.17682938,7.203e-05,2]
[406719275,1772118633445,-5000.0,7.203e-05,2]
[406719276,1772118633455,-156.68,7.299e-05,2]
[406719277,1772118633464,-946.44474214,7.328e-05,2]
[406719278,1772118633473,-491935.94575002,7.329e-05,2]
[406719279,1772118633484,-5828.19194852,7.329e-05,2]
[406719280,1772118633496,-5243.96539389,7.329e-05,2]
[406719288,1772118638085,-537.59940622,7.329e-05,2]
[406719289,1772118638216,-1964.94447344,7.329e-05,2]
[406719290,1772118638228,-1980.58075856,7.329e-05,2]
[406719313,1772118640549,-287.88604632,7.329e-05,2]
[406719314,1772118640562,-676.03,7.329e-05,2]
[406719315,1772118640574,-1491544.85622303,7.329e-05,2]
[406719316,1772118640584,-1502.82666669,7.429e-05,2]
[406719317,1772118640594,-299.99,7.429e-05,2]
[406719318,1772118640605,-9999.99,7.429e-05,2]
[406719319,1772118640615,-150.99,7.429e-05,2]
[406719320,1772118640625,-9999.99,7.429e-05,2]
[406719321,1772118640634,-381.71,7.429e-05,2]
[406719322,1772118640660,-37901.47,7.43e-05,2]
[406719323,1772118640671,-1591.19,7.474e-05,2]
[406719324,1772118640681,-29748.84,7.671e-05,2]
[406719325,1772118640691,-1704.0,7.929e-05,2]
[406719326,1772118640701,-908.0,7.945e-05,2]
[406719327,1772118640711,-380.0,7.96e-05,2]
[406719328,1772118640721,-758.0,7.976e-05,2]
[406719329,1772118640731,-1500.0,7.991e-05,2]
[406719330,1772118640741,-166.66,8.021e-05,2]
[406719331,1772118640751,-166.66,8.286e-05,2]
[406719332,1772118640761,-166.66,8.551e-05,2]
[406719333,1772118640771,-166.66,8.815e-05,2]
[406719334,1772118640782,-187.67,8.9e-05,2]
[406719335,1772118640792,-281.5,8.9e-05,2]
[406719336,1772118640801,-1181.0,8.959e-05,2]
[406719337,1772118640811,-357.0,8.977e-05,2]
[406719338,1772118640821,-1634.0,8.995e-05,2]
[406719339,1772118640831,-1754.0,9.013e-05,2]
[406719340,1772118640841,-1196.0,9.03e-05,2]
[406719341,1772118640850,-685.0,9.048e-05,2]
[406719342,1772118640860,-1206.0,9.066e-05,2]
[406719343,1772118640870,-166.66,9.08e-05,2]
[406719344,1772118640880,-1513.0,9.084e-05,2]
[406719345,1772118640890,-150.0,9.156e-05,2]
[406719346,1772118640901,-150.0,9.156e-05,2]
[406719347,1772118640911,-162.43895648,9.156e-05,2]
[406719348,1772118640920,-150.0,9.211e-05,2]
[406719349,1772118640930,-4133.1798,9.33e-05,2]
[406719350,1772118640939,-89535.6773,9.33e-05,2]
[406719351,1772118640948,-454.3546,9.33e-05,2]
[406719352,1772118640958,-500.0,9.33e-05,2]
[406719353,1772118640967,-166.66,9.345e-05,2]
[406719354,1772118640977,-618.0,9.43e-05,2]
[406719355,1772118640986,-1041.0,9.43e-05,2]
[406719356,1772118640995,-1340.0,9.43e-05,2]
[406719357,1772118641005,-1277.0,9.43e-05,2]
[406719358,1772118641014,-920.0,9.43e-05,2]
[406719359,1772118641024,-1211.0,9.43e-05,2]
[406719360,1772118641033,-5983.0,9.43e-05,2]
[406719361,1772118641043,-413.0,9.43e-05,2]
[406719362,1772118641053,-4572.0,9.43e-05,2]
[406719363,1772118641063,-2500.0,9.581e-05,2]
[406719364,1772118641072,-208.88429413,9.653e-05,2]
[406719365,1772118641081,-151.0,9.678e-05,2]
[406719366,1772118641091,-500.0,9.68e-05,2]
[406719367,1772118641100,-500.0,9.68e-05,2]
[406719368,1772118641109,-500.0,9.68e-05,2]
[406719369,1772118641119,-500.0,9.68e-05,2]
[406719370,1772118641129,-500.0,9.68e-05,2]
[406719371,1772118641138,-500.0,9.68e-05,2]
[406719372,1772118641147,-500.0,9.68e-05,2]
[406719373,1772118641159,-500.0,9.68e-05,2]
[406719374,1772118641169,-500.0,9.68e-05,2]
[406719375,1772118641179,-500.0,9.68e-05,2]
[406719377,1772118641192,-550.00000009,9.68e-05,2]
[406719379,1772118641205,-500.0,9.68e-05,2]
[406719380,1772118641215,-500.0,9.68e-05,2]
[406719381,1772118641224,-500.0,9.68e-05,2]
[406719382,1772118641234,-500.0,9.68e-05,2]
[406719383,1772118641247,-500.0,9.68e-05,2]
[406719384,1772118641256,-500.0,9.68e-05,2]
[406719385,1772118641265,-500.0,9.68e-05,2]
[406719386,1772118641275,-500.0,9.68e-05,2]
[406719387,1772118641285,-500.0,9.68e-05,2]
[406719388,1772118641297,-500.0,9.68e-05,2]
[406719389,1772118641306,-500.0,9.68e-05,2]
[406719390,1772118641316,-500.0,9.68e-05,2]
[406719391,1772118641326,-500.0,9.68e-05,2]
[406719392,1772118641335,-500.0,9.68e-05,2]
[406719394,1772118641345,-500.0,9.68e-05,2]
[406719396,1772118641354,-500.0,9.68e-05,2]
[406719398,1772118641364,-500.0,9.68e-05,2]
[406719400,1772118641374,-500.0,9.68e-05,2]
[406719402,1772118641384,-500.0,9.68e-05,2]
[406719404,1772118641394,-500.0,9.68e-05,2]
[406719406,1772118641405,-500.0,9.68e-05,2]
[406719408,1772118641414,-500.0,9.68e-05,2]
[406719410,1772118641424,-500.0,9.68e-05,2]
[406719412,1772118641433,-369.48403648,9.68e-05,2]
[406719414,1772118641443,-211.44916814,9.68e-05,2]
[406719416,1772118641453,-500.0,9.68e-05,2]
[406719418,1772118641462,-521.46070937,9.68e-05,2]
[406719421,1772118641473,-500.0,9.68e-05,2]
[406719423,1772118641483,-500.0,9.68e-05,2]
[406719425,1772118641492,-500.0,9.68e-05,2]
[406719427,1772118641502,-500.0,9.68e-05,2]
[406719429,1772118641511,-500.0,9.68e-05,2]
[406719431,1772118641521,-500.0,9.68e-05,2]
[406719433,1772118641530,-500.0,9.68e-05,2]
[406719435,1772118641539,-500.0,9.68e-05,2]
[406719437,1772118641549,-250.0,9.68e-05,2]
[406719439,1772118641559,-500.0,9.68e-05,2]
[406719441,1772118641568,-500.0,9.68e-05,2]
[406719443,1772118641579,-500.0,9.68e-05,2]
[406719446,1772118641596,-500.0,9.68e-05,2]
[406719448,1772118641606,-500.0,9.68e-05,2]
[406719450,1772118641617,-350.55941898,9.68e-05,2]
[406719452,1772118641641,-500.0,9.68e-05,2]
[406719454,1772118641659,-500.0,9.68e-05,2]
[406719456,1772118641668,-500.0,9.68e-05,2]
[406719458,1772118641678,-382.55128779,9.68e-05,2]
[406719460,1772118641690,-500.0,9.68e-05,2]
[406719462,1772118641714,-500.0,9.68e-05,2]
[406719464,1772118641732,-500.0,9.68e-05,2]
[406719466,1772118641743,-500.0,9.68e-05,2]
[406719468,1772118641752,-500.0,9.68e-05,2]
[406719469,1772118641762,-456.07170591,9.68e-05,2]
[406719470,1772118641771,-500.0,9.68e-05,2]
[406719471,1772118641781,-325.09882756,9.68e-05,2]
[406719472,1772118641790,-1500000.0,9.681e-05,2]
[406719473,1772118641800,-21846.65485425,9.756e-05,2]
[406719474,1772118641809,-150.0,9.757e-05,2]
[406719475,1772118641818,-215.0,9.757e-05,2]
[406719476,1772118641828,-150.0,9.757e-05,2]
[406719477,1772118641837,-150.061,9.757e-05,2]
[406719478,1772118641847,-150.05,9.757e-05,2]
[406719479,1772118641857,-150.034,9.757e-05,2]
[406719480,1772118641867,-150.0,9.757e-05,2]
[406719481,1772118641877,-150.0,9.757e-05,2]
[406719482,1772118641887,-150.203,9.757e-05,2]
[406719483,1772118641898,-150.0,9.757e-05,2]
[406719484,1772118641909,-151.0,9.778e-05,2]
[406719485,1772118641919,-69461.8304039,9.781e-05,7]
[406719486,1772118641929,-205.0,9.8e-05,2]
[406719487,1772118641939,-1000.0,9.8e-05,3]
[406719488,1772118641949,-2000.0,9.9e-05,3]
[406719489,1772118641959,-28353.88105348,9.95e-05,2]
[406719490,1772118641968,-595.52015508,0.0001,2]
[406719491,1772118641979,-151.0,0.0001,2]
[406719492,1772118641989,-204.31050694,0.0001,2]
[406719493,1772118641998,-3100.0,0.0001,3]
[406719494,1772118642008,-151.0,0.0001,2]
[406719495,1772118642017,-151.0,0.0001,2]
[406719496,1772118642027,-151.0,0.0001,2]
[406719497,1772118642037,-151.0,0.0001,2]
[406719498,1772118642047,-151.0,0.0001,2]
[406719499,1772118642056,-151.0,0.0001,2]
[406719500,1772118642066,-151.0,0.0001,2]
[406719501,1772118642075,-151.0,0.0001,2]
[406719502,1772118642085,-200.0,0.0001,2]
[406719503,1772118642094,-151.0,0.0001,2]
[406719504,1772118642104,-151.0,0.0001,2]
[406719505,1772118642113,-151.0,0.0001,2]
[406719506,1772118642123,-151.0,0.0001,2]
[406719507,1772118642133,-151.0,0.0001,2]
[406719508,1772118642143,-151.0,0.0001,2]
[406719509,1772118642152,-151.0,0.0001,2]
[406719510,1772118642161,-151.0,0.0001,2]
[406719511,1772118642171,-151.0,0.0001,2]
[406719512,1772118642182,-151.0,0.0001,2]
[406719513,1772118642192,-151.0,0.0001,2]
[406719514,1772118642205,-151.0,0.0001,2]
[406719515,1772118642214,-151.0,0.0001,2]
[406719516,1772118642224,-151.0,0.0001,2]
[406719517,1772118642234,-151.0,0.0001,2]
[406719518,1772118642244,-151.0,0.0001,2]
[406719519,1772118642253,-151.0,0.0001,2]
[406719520,1772118642264,-151.0,0.0001,2]
[406719521,1772118642275,-151.0,0.0001,2]
[406719522,1772118642284,-151.0,0.0001,2]
[406719523,1772118642294,-151.0,0.0001,2]
[406719524,1772118642303,-151.0,0.0001,2]
[406719525,1772118642313,-151.0,0.0001,2]
[406719526,1772118642323,-151.0,0.0001,2]
[406719527,1772118642332,-151.0,0.0001,2]
[406719528,1772118642341,-151.0,0.0001,2]
[406719529,1772118642350,-151.0,0.0001,2]
[406719530,1772118642360,-151.0,0.0001,2]
[406719531,1772118642369,-500.0,0.0001,2]
[406719532,1772118642379,-151.0,0.0001,2]
[406719533,1772118642389,-151.0,0.0001,2]
[406719534,1772118642398,-151.0,0.0001,2]
[406719535,1772118642409,-500.0,0.0001,2]
[406719536,1772118642422,-151.0,0.0001,2]
[406719537,1772118642432,-151.0,0.0001,2]
[406719538,1772118642441,-500.0,0.0001,2]
[406719539,1772118642451,-151.0,0.0001,2]
[406719540,1772118642461,-151.0,0.0001,2]
[406719541,1772118642471,-500.0,0.0001,2]
[406719542,1772118642480,-151.0,0.0001,2]
[406719543,1772118642629,-151.0,0.0001,2]
[406719544,1772118642639,-500.0,0.0001,2]
[406719545,1772118642649,-151.0,0.0001,2]
[406719546,1772118642659,-553.9571256,0.0001,2]
[406719547,1772118642669,-151.0,0.0001,2]
[406719548,1772118642679,-151.0,0.0001,2]
[406719549,1772118642689,-151.0,0.0001,2]
[406719550,1772118642698,-151.0,0.0001,2]
[406719551,1772118642708,-151.0,0.0001,2]
[406719552,1772118642717,-500.0,0.0001,2]
[406719553,1772118642728,-500.0,0.0001,2]
[406719554,1772118642741,-500.0,0.0001,2]
[406719555,1772118642750,-1186.11241235,0.0001,2]
[406719556,1772118642759,-500.0,0.0001,2]
[406719557,1772118642769,-500.0,0.0001,2]
[406719558,1772118642778,-500.0,0.0001,2]
[406719559,1772118642788,-500.0,0.0001,2]
[406719560,1772118642797,-500.0,0.0001,2]
[406719561,1772118642806,-500.0,0.0001,2]
[406719562,1772118642815,-500.0,0.0001,2]
[406719563,1772118642825,-500.0,0.0001,2]
[406719564,1772118642834,-1070.62307231,0.0001,2]
[406719565,1772118642844,-1070.62307231,0.0001,2]
[406719566,1772118642853,-32883.6844,0.000102,2]
[406719567,1772118642863,-1000.0,0.000102,2]
[406719568,1772118642872,-163.58,0.00010254,2]
[406719569,1772118642883,-241.052185,0.00010264,2]
[406719571,1772118642892,-1137.16035,0.00010264,2]
[406719572,1772118642913,-500.0,0.000103,2]
[406719573,1772118642934,-500.0,0.000103,2]
[406719574,1772118642944,-500.0,0.000103,2]
[406719575,1772118642953,-500.0,0.000103,2]
[406719577,1772118642962,-500.0,0.000103,2]
[406719578,1772118642971,-500.0,0.000103,2]
[406719579,1772118642980,-500.0,0.000103,2]
[406719582,1772118642990,-500.0,0.000103,2]
[406719583,1772118642999,-500.0,0.000103,2]
[406719584,1772118643009,-500.0,0.000103,2]
[406719585,1772118643018,-500.0,0.000103,2]
[406719586,1772118643027,-500.0,0.000103,2]
[406719588,1772118643036,-500.0,0.000103,2]
[406719590,1772118643046,-500.0,0.000103,2]
[406719591,1772118643056,-500.0,0.000103,2]
[406719592,1772118643066,-500.0,0.000103,2]
[406719593,1772118643075,-500.0,0.000103,2]
[406719594,1772118643085,-500.0,0.000103,2]
[406719595,1772118643094,-500.0,0.000103,2]
[406719596,1772118643103,-500.0,0.000103,2]
[406719597,1772118643112,-500.0,0.000103,2]
[406719598,1772118643122,-500.0,0.000103,2]
[406719599,1772118643132,-500.0,0.000103,2]
[406719600,1772118643141,-500.0,0.000103,2]